fUSD/lending_fUSD_20250217
["ID","MTS","AMOUNT","RATE_DAILY","PERIOD"]
[353374287,1739803840707,-500.0,0.00013697,2]
[353374289,1739803840717,-500.0,0.00013697,2]
[353374291,1739803840727,-61.87123772,0.00013698,2]
[353374293,1739803840737,-500.0,0.00013698,2]
[353374295,1739803840747,-500.0,0.00013698,2]
[353374297,1739803840757,-500.0,0.00013698,2]
[353374299,1739803840767,-500.0,0.00013698,2]
[353374301,1739803840777,-500.0,0.00013698,2]
[353374303,1739803840786,-879.12,0.00013698,2]
[353374305,1739803840796,-500.0,0.00013698,2]
[353374307,1739803840805,-500.0,0.00013698,2]
[353374309,1739803840815,-537.24,0.00013698,2]
[353374311,1739803840825,-500.0,0.00013698,2]
[353374313,1739803840834,-500.0,0.00013698,2]
[353374315,1739803840843,-2021.93,0.00013698,2]
[353374317,1739803840853,-500.0,0.00013698,2]
[353374319,1739803840861,-500.0,0.00013698,2]
[353374321,1739803840871,-500.0,0.00013698,2]
[353374323,1739803840880,-500.0,0.00013698,2]
[353374324,1739803840890,-500.0,0.00013698,2]
[353374327,1739803840899,-598.1,0.00013698,2]
[353374328,1739803840908,-500.0,0.00013698,2]
[353374330,1739803840918,-519.39,0.00013698,2]
[353374332,1739803840928,-1284.9,0.00013698,2]
[353374334,1739803840938,-500.0,0.00013698,2]
[353374337,1739803840948,-500.0,0.00013698,2]
[353374339,1739803840957,-500.0,0.00013698,2]
[353374341,1739803840970,-577.45,0.00013698,2]
[353374344,1739803840988,-500.0,0.00013698,2]
[353374346,1739803841003,-500.0,0.00013698,2]
[353374349,1739803841015,-500.0,0.00013698,2]
[353374351,1739803841027,-894.92,0.00013698,2]
[353374353,1739803841040,-500.0,0.00013698,2]
[353374356,1739803841053,-500.0,0.00013698,2]
[353374358,1739803841067,-503.51237108,0.00013698,2]
[353374360,1739803841079,-500.0,0.00013698,2]
[353374363,1739803841091,-500.0,0.00013698,2]
[353374365,1739803841103,-500.0,0.00013698,2]
[353374367,1739803841115,-704.86,0.00013698,2]
[353374369,1739803841126,-1606.9,0.00013698,2]
[353374372,1739803841139,-1836.07,0.00013698,2]
[353374374,1739803841152,-1140.29,0.00013698,2]
[353374376,1739803841164,-500.0,0.00013698,2]
[353374379,1739803841177,-500.4673925,0.00013698,2]
[353374381,1739803841190,-500.0,0.00013698,2]
[353374384,1739803841204,-500.0,0.00013698,2]
[353374386,1739803841218,-500.0,0.00013698,2]
[353374388,1739803841231,-500.0,0.00013698,2]
[353374390,1739803841245,-500.0,0.00013698,2]
[353374393,1739803841259,-500.0,0.00013698,2]
[353374395,1739803841273,-500.0,0.00013698,2]
[353374398,1739803841286,-500.0,0.00013698,2]
[353374400,1739803841299,-500.0,0.00013698,2]
[353374402,1739803841311,-513.14,0.00013698,2]
[353374405,1739803841324,-500.0,0.00013698,2]
[353374407,1739803841337,-500.0,0.00013698,2]
[353374409,1739803841350,-500.0,0.00013698,2]
[353374412,1739803841363,-1230.86,0.00013698,2]
[353374414,1739803841375,-500.0,0.00013698,2]
[353374416,1739803841386,-501.52382882,0.00013698,2]
[353374418,1739803841397,-500.0,0.00013698,2]
[353374421,1739803841408,-1538.16,0.00013698,2]
[353374423,1739803841423,-912.12,0.00013698,2]
[353374425,1739803841437,-1693.91,0.00013698,2]
[353374428,1739803841448,-600.61,0.00013698,2]
[353374430,1739803841458,-500.0,0.00013698,2]
[353374432,1739803841469,-176.7473867,0.00013698,2]
[353374434,1739803841483,-1051.72,0.00013698,2]
[353374437,1739803841498,-500.0,0.00013698,2]
[353374439,1739803841509,-503.0467604,0.00013698,2]
[353374441,1739803841520,-500.0,0.00013698,2]
[353374443,1739803841531,-500.0,0.00013698,2]
[353374445,1739803841542,-500.0,0.00013698,2]
[353374447,1739803841554,-664.95,0.00013698,2]
[353374450,1739803841565,-501.22483022,0.00013698,2]
[353374452,1739803841580,-500.0,0.00013698,2]
[353374455,1739803841592,-1138.39,0.00013698,2]
[353374457,1739803841604,-500.0,0.00013698,2]
[353374459,1739803841616,-500.0,0.00013698,2]
[353374461,1739803841628,-500.0,0.00013698,2]
[353374464,1739803841640,-1798.52,0.00013698,2]
[353374466,1739803841652,-500.0,0.00013698,2]
[353374468,1739803841663,-522.36754824,0.00013698,2]
[353374470,1739803841674,-500.0,0.00013698,2]
[353374472,1739803841686,-500.0,0.00013698,2]
[353374475,1739803841700,-501.0598438,0.00013698,2]
[353374477,1739803841712,-500.0,0.00013698,2]
[353374479,1739803841723,-500.0,0.00013698,2]
[353374481,1739803841737,-547.26,0.00013698,2]
[353374484,1739803841749,-1192.69,0.00013698,2]
[353374486,1739803841761,-1657.38,0.00013698,2]
[353374488,1739803841773,-500.0,0.00013698,2]
[353374490,1739803841785,-1595.39,0.00013698,2]
[353374492,1739803841796,-1190.98,0.00013698,2]
[353374495,1739803841807,-805.34,0.00013698,2]
[353374497,1739803841819,-500.0,0.00013698,2]
[353374499,1739803841830,-500.0,0.00013698,2]
[353374501,1739803841841,-500.0,0.00013698,2]
[353374504,1739803841853,-501.369541,0.00013698,2]
[353374506,1739803841865,-2659.23,0.00013698,2]
[353374508,1739803841876,-500.0,0.00013698,2]
[353374510,1739803841888,-1143.07,0.00013698,2]
[353374512,1739803841899,-500.0,0.00013698,2]
[353374515,1739803841911,-504.53108556,0.00013698,2]
[353374517,1739803841922,-500.0,0.00013698,2]
[353374519,1739803841933,-500.0,0.00013698,2]
[353374521,1739803841944,-500.0,0.00013698,2]
[353374523,1739803841954,-500.0,0.00013698,2]
[353374526,1739803841965,-1508.45,0.00013698,2]
[353374528,1739803841977,-500.0,0.00013698,2]
[353374530,1739803841989,-1290.24,0.00013698,2]
[353374532,1739803842000,-649.0,0.00013698,2]
[353374534,1739803842011,-500.0,0.00013698,2]
[353374537,1739803842022,-545.21,0.00013698,2]
[353374539,1739803842033,-867.01,0.00013698,2]
[353374541,1739803842045,-501.65573775,0.00013698,2]
[353374543,1739803842056,-500.0,0.00013698,2]
[353374545,1739803842068,-500.0,0.00013698,2]
[353374547,1739803842079,-500.0,0.00013698,2]
[353374550,1739803842091,-1434.49,0.00013698,2]
[353374552,1739803842104,-500.0,0.00013698,2]
[353374554,1739803842115,-500.0,0.00013698,2]
[353374557,1739803842127,-1108.9,0.00013698,2]
[353374559,1739803842138,-500.0,0.00013698,2]
[353374561,1739803842150,-500.0,0.00013698,2]
[353374563,1739803842162,-2098.57,0.00013698,2]
[353374566,1739803842173,-500.0,0.00013698,2]
[353374568,1739803842184,-500.33725453,0.00013698,2]
[353374570,1739803842196,-500.0,0.00013698,2]
[353374572,1739803842208,-500.0,0.00013698,2]
[353374574,1739803842220,-500.0,0.00013698,2]
[353374576,1739803842233,-1268.29,0.00013698,2]
[353374579,1739803842245,-674.93,0.00013698,2]
[353374581,1739803842256,-1356.52,0.00013698,2]
[353374583,1739803842269,-1511.65,0.00013698,2]
[353374585,1739803842281,-500.0,0.00013698,2]
[353374588,1739803842292,-500.0,0.00013698,2]
[353374590,1739803842305,-1291.33,0.00013698,2]
[353374592,1739803842320,-500.0,0.00013698,2]
[353374595,1739803842332,-4648.54,0.00013698,2]
[353374597,1739803842343,-628.89370761,0.00013698,2]
[353374599,1739803842356,-504.63976605,0.00013698,2]
[353374602,1739803842370,-4705.23,0.00013698,2]
[353374604,1739803842381,-500.0,0.00013698,2]
[353374606,1739803842393,-500.0,0.00013698,2]
[353374608,1739803842405,-500.0,0.00013698,2]
[353374610,1739803842416,-505.12,0.00013698,2]
[353374611,1739803842427,-498.4213162,0.00013698,2]
[353374612,1739803842439,-654.78027555,0.00013698,2]
[353374620,1739803842551,-376.9439,0.00013697,2]
[353374623,1739803842564,-123.0561,0.00013697,2]
[353374625,1739803842576,-353.8189,0.00013698,2]
[353374635,1739803842666,-649.1599064,0.00013697,2]
[353374638,1739803842678,-500.0,0.00013697,2]
[353374640,1739803842689,-500.0,0.00013697,2]
[353374642,1739803842703,-2321.42082445,0.00013698,2]
[353374644,1739803842715,-1575.23,0.00013698,2]
[353374646,1739803842726,-500.0,0.00013698,2]
[353374648,1739803842740,-500.0,0.00013698,2]
[353374651,1739803842751,-624.71145289,0.00013698,2]
[353374653,1739803842762,-500.0,0.00013698,2]
[353374655,1739803842774,-500.0,0.00013698,2]
[353374657,1739803842787,-500.0,0.00013698,2]
[353374659,1739803842799,-500.0,0.00013698,2]
[353374662,1739803842811,-1210.62,0.00013698,2]
[353374664,1739803842822,-553.56189174,0.00013698,2]
[353374666,1739803842833,-536.16691759,0.00013698,2]
[353374668,1739803842845,-500.0,0.00013698,2]
[353374670,1739803842857,-500.0,0.00013698,2]
[353374672,1739803842868,-500.0,0.00013698,2]
[353374675,1739803842880,-649.94135772,0.00013698,2]
[353374677,1739803842891,-2780.15,0.00013698,2]
[353374679,1739803842903,-2032.97,0.00013698,2]
[353374681,1739803842915,-500.0,0.00013698,2]
[353374683,1739803842926,-1876.98,0.00013698,2]
[353374686,1739803842938,-500.0,0.00013698,2]
[353374688,1739803842949,-500.0,0.00013698,2]
[353374690,1739803842959,-2222.34,0.00013698,2]
[353374692,1739803842970,-218.76931305,0.00013698,2]
[353374694,1739803842984,-500.0,0.00013698,2]
[353374696,1739803842995,-500.0,0.00013698,2]
[353374699,1739803843007,-505.07650186,0.00013698,2]
[353374701,1739803843019,-631.53,0.00013698,2]
[353374703,1739803843030,-500.0,0.00013698,2]
[353374705,1739803843043,-500.0,0.00013698,2]
[353374708,1739803843054,-500.0,0.00013698,2]
[353374710,1739803843066,-1461.59,0.00013698,2]
[353374712,1739803843078,-500.0,0.00013698,2]
[353374715,1739803843089,-670.77,0.00013698,2]
[353374718,1739803843100,-541.74294832,0.00013698,2]
[353374719,1739803843109,-508.34720662,0.00013698,2]
[353374721,1739803843118,-1819.0,0.00013698,2]
[353374723,1739803843128,-1347.83,0.00013698,2]
[353374725,1739803843137,-3418.0,0.00013698,2]
[353374727,1739803843147,-500.0,0.00013698,2]
[353374729,1739803843156,-500.0,0.00013698,2]
[353374731,1739803843165,-373.3516562,0.00013698,2]
[353374733,1739803843174,-500.0,0.00013698,2]
[353374735,1739803843184,-2227.57,0.00013698,2]
[353374737,1739803843193,-1731.4,0.00013698,2]
[353374739,1739803843203,-500.0,0.00013698,2]
[353374742,1739803843213,-2254.59,0.00013698,2]
[353374743,1739803843223,-500.0,0.00013698,2]
[353374744,1739803843234,-500.0,0.00013698,2]
[353374745,1739803843245,-500.0,0.00013698,2]
[353374746,1739803843255,-198.68002318,0.00013698,2]
[353374767,1739803843676,-500.0,0.00013697,2]
[353374768,1739803843689,-500.0,0.00013697,2]
[353374769,1739803843704,-500.0,0.00013697,2]
[353374770,1739803843715,-500.0,0.00013697,2]
[353374771,1739803843724,-662.43997682,0.00013698,2]
[353374772,1739803843734,-500.0,0.00013698,2]
[353374773,1739803843744,-500.0,0.00013698,2]
[353374774,1739803843753,-501.73181401,0.00013698,2]
[353374775,1739803843762,-500.0,0.00013698,2]
[353374776,1739803843773,-502.78,0.00013698,2]
[353374777,1739803843782,-591.03671123,0.00013698,2]
[353374778,1739803843791,-500.0,0.00013698,2]
[353374779,1739803843800,-500.0,0.00013698,2]
[353374780,1739803843810,-500.0,0.00013698,2]
[353374781,1739803843819,-1485.3,0.00013698,2]
[353374782,1739803843828,-500.0,0.00013698,2]
[353374783,1739803843837,-1726.65,0.00013698,2]
[353374784,1739803843846,-1107.54,0.00013698,2]
[353374785,1739803843855,-500.0,0.00013698,2]
[353374787,1739803843864,-2147.21,0.00013698,2]
[353374789,1739803843873,-500.0,0.00013698,2]
[353374791,1739803843883,-1669.15,0.00013698,2]
[353374794,1739803843892,-1099.98,0.00013698,2]
[353374796,1739803843902,-500.0,0.00013698,2]
[353374797,1739803843916,-1909.85,0.00013698,2]
[353374798,1739803843925,-500.0,0.00013698,2]
[353374799,1739803843936,-2204.89,0.00013698,2]
[353374800,1739803843946,-501.96117527,0.00013698,2]
[353374801,1739803843956,-500.0,0.00013698,2]
[353374802,1739803843965,-500.0,0.00013698,2]
[353374803,1739803843975,-500.0,0.00013698,2]
[353374804,1739803843986,-500.0,0.00013698,2]
[353374805,1739803843995,-500.0,0.00013698,2]
[353374806,1739803844005,-1307.42,0.00013698,2]
[353374807,1739803844014,-500.0,0.00013698,2]
[353374808,1739803844024,-500.0,0.00013698,2]
[353374809,1739803844034,-500.0,0.00013698,2]
[353374810,1739803844043,-500.0,0.00013698,2]
[353374811,1739803844053,-1952.62,0.00013698,2]
[353374812,1739803844062,-1961.59,0.00013698,2]
[353374813,1739803844071,-1980.29,0.00013698,2]
[353374814,1739803844080,-500.0,0.00013698,2]
[353374815,1739803844091,-893.06,0.00013698,2]
[353374816,1739803844100,-500.0,0.00013698,2]
[353374817,1739803844110,-1363.95,0.00013698,2]
[353374818,1739803844119,-500.0,0.00013698,2]
[353374819,1739803844128,-1909.51,0.00013698,2]
[353374820,1739803844138,-599.18,0.00013698,2]
[353374821,1739803844148,-500.0,0.00013698,2]
[353374822,1739803844157,-269.74555598,0.00013698,2]
[353374823,1739803844167,-500.0,0.00013698,2]
[353374824,1739803844177,-500.0,0.00013698,2]
[353374825,1739803844186,-6353.24457591,0.00013698,2]
[353374826,1739803845339,-500.0,0.00013697,2]
[353374827,1739803845349,-500.0,0.00013697,2]
[353374828,1739803845360,-500.0,0.00013697,2]
[353374829,1739803845369,-500.0,0.00013697,2]
[353374830,1739803845379,-500.0,0.00013697,2]
[353374831,1739803845388,-245.4001,0.00013697,2]
[353374832,1739803845454,-254.5999,0.00013697,2]
[353374833,1739803845464,-500.0,0.00013697,2]
[353374834,1739803845473,-500.0,0.00013697,2]
[353374835,1739803845483,-500.0,0.00013697,2]
[353374836,1739803845493,-1807.77542409,0.00013698,2]
[353374837,1739803845502,-2203.79946556,0.00013698,2]
[353374840,1739803846450,-317.63053444,0.00013698,2]
[353374841,1739803846460,-500.0,0.00013698,2]
[353374842,1739803846469,-500.0,0.00013698,2]
[353374843,1739803846479,-500.0,0.00013698,2]
[353374844,1739803846489,-2382.98,0.00013698,2]
[353374845,1739803846498,-500.0,0.00013698,2]
[353374846,1739803846507,-500.0,0.00013698,2]
[353374847,1739803846515,-565.25,0.00013698,2]
[353374848,1739803846525,-500.0,0.00013698,2]
[353374849,1739803846534,-500.0,0.00013698,2]
[353374850,1739803846544,-500.0,0.00013698,2]
[353374851,1739803846553,-500.0,0.00013698,2]
[353374852,1739803846563,-2125.7,0.00013698,2]
[353374853,1739803846572,-790.76,0.00013698,2]
[353374854,1739803846581,-500.0,0.00013698,2]
[353374855,1739803846591,-2661.72,0.00013698,2]
[353374856,1739803846600,-501.76312083,0.00013698,2]
[353374857,1739803846609,-500.0,0.00013698,2]
[353374858,1739803846619,-500.0,0.00013698,2]
[353374860,1739803846628,-5540.16,0.00013698,2]
[353374862,1739803846638,-502.58259667,0.00013698,2]
[353374864,1739803846647,-501.36275635,0.00013698,2]
[353374866,1739803846657,-500.0,0.00013698,2]
[353374868,1739803846666,-500.0,0.00013698,2]
[353374870,1739803846676,-500.0,0.00013698,2]
[353374872,1739803846685,-500.0,0.00013698,2]
[353374874,1739803846694,-500.0,0.00013698,2]
[353374877,1739803846708,-502.30810413,0.00013698,2]
[353374878,1739803846717,-500.0,0.00013698,2]
[353374879,1739803846726,-1236.37,0.00013698,2]
[353374881,1739803846736,-2452.32,0.00013698,2]
[353374883,1739803846747,-500.0,0.00013698,2]
[353374885,1739803846757,-500.0,0.00013698,2]
[353374887,1739803846766,-500.0,0.00013698,2]
[353374888,1739803846777,-500.0,0.00013698,2]
[353374889,1739803846787,-2916.05,0.00013698,2]
[353374890,1739803846797,-1286.56,0.00013698,2]
[353374891,1739803846807,-500.0,0.00013698,2]
[353374892,1739803846816,-561.93246369,0.00013698,2]
[353374893,1739803846826,-500.0,0.00013698,2]
[353374894,1739803846835,-2025.34,0.00013698,2]
[353374895,1739803846845,-500.0,0.00013698,2]
[353374896,1739803846854,-500.0,0.00013698,2]
[353374897,1739803846864,-500.31864885,0.00013698,2]
[353374898,1739803846874,-500.0,0.00013698,2]
[353374899,1739803846883,-927.18,0.00013698,2]
[353374900,1739803846893,-500.0,0.00013698,2]
[353374901,1739803846903,-1792.9,0.00013698,2]
[353374902,1739803846911,-1717.86,0.00013698,2]
[353374903,1739803846921,-500.0,0.00013698,2]
[353374904,1739803846930,-508.11116218,0.00013698,2]
[353374905,1739803846940,-500.0,0.00013698,2]
[353374906,1739803846950,-500.0,0.00013698,2]
[353374907,1739803847178,-1187.47,0.00013698,2]
[353374908,1739803847189,-1164.64,0.00013698,2]
[353374909,1739803847199,-500.0,0.00013698,2]
[353374910,1739803847209,-500.0,0.00013698,2]
[353374911,1739803847219,-500.0,0.00013698,2]
[353374912,1739803847228,-500.0,0.00013698,2]
[353374913,1739803847238,-532.83529681,0.00013698,2]
[353374914,1739803847246,-500.0,0.00013698,2]
[353374915,1739803847254,-500.52902449,0.00013698,2]
[353374916,1739803847264,-685.27,0.00013698,2]
[353374917,1739803847273,-500.0,0.00013698,2]
[353374918,1739803847283,-500.0,0.00013698,2]
[353374919,1739803847293,-1780.47,0.00013698,2]
[353374920,1739803847303,-500.0,0.00013698,2]
[353374921,1739803847313,-500.0,0.00013698,2]
[353374922,1739803847323,-500.0,0.00013698,2]
[353374923,1739803847333,-472.07861443,0.00013698,2]
[353374924,1739803847343,-2267.39,0.00013698,2]
[353374925,1739803847352,-1607.79,0.00013698,2]
[353374926,1739803847362,-623.95076038,0.00013698,2]
[353374927,1739803847372,-1310.84,0.00013698,2]
[353374928,1739803847382,-509.47741987,0.00013698,2]
[353374929,1739803847392,-500.0,0.00013698,2]
[353374930,1739803847401,-500.0,0.00013698,2]
[353374931,1739803847411,-1202.25,0.00013698,2]
[353374932,1739803847421,-2956.21,0.00013698,2]
[353374933,1739803847430,-501.22687295,0.00013698,2]
[353374934,1739803847440,-500.0,0.00013698,2]
[353374935,1739803847451,-614.20483664,0.00013698,2]
[353374936,1739803847461,-500.0,0.00013698,2]
[353374937,1739803847472,-500.0,0.00013698,2]
[353374938,1739803847482,-500.0,0.00013698,2]
[353374939,1739803847492,-500.0,0.00013698,2]
[353374940,1739803847503,-2229.14,0.00013698,2]
[353374941,1739803847513,-507.03117194,0.00013698,2]
[353374942,1739803847523,-1556.09,0.00013698,2]
[353374943,1739803847533,-500.0,0.00013698,2]
[353374944,1739803847542,-500.0,0.00013698,2]
[353374945,1739803847552,-500.0,0.00013698,2]
[353374946,1739803847562,-500.0,0.00013698,2]
[353374947,1739803847571,-496.0,0.00013698,2]
[353374948,1739803847581,-500.0,0.00013698,2]
[353374949,1739803847591,-515.33688995,0.00013698,2]
[353374950,1739803847601,-628.15444394,0.00013698,2]
[353374951,1739803847611,-500.0,0.00013698,2]
[353374952,1739803847621,-500.0,0.00013698,2]
[353374953,1739803847631,-500.0,0.00013698,2]
[353374954,1739803847641,-500.0,0.00013698,2]
[353374955,1739803847650,-3091.6,0.00013698,2]
[353374956,1739803847661,-233.41811576,0.00013698,2]
[353374957,1739803847671,-500.0,0.00013698,2]
[353374958,1739803847681,-500.0,0.00013698,2]
[353374959,1739803847690,-510.49549029,0.00013698,2]
[353374960,1739803847703,-500.0,0.00013698,2]
[353374961,1739803847713,-1896.88,0.00013698,2]
[353374962,1739803847722,-1559.47,0.00013698,2]
[353374963,1739803847733,-1393.27,0.00013698,2]
[353374964,1739803847745,-500.0,0.00013698,2]
[353374965,1739803847754,-1176.46,0.00013698,2]
[353374966,1739803847763,-500.0,0.00013698,2]
[353374967,1739803847773,-500.0,0.00013698,2]
[353374968,1739803847784,-500.0,0.00013698,2]
[353374969,1739803847793,-2899.2,0.00013698,2]
[353374970,1739803847803,-1498.29,0.00013698,2]
[353374971,1739803847812,-559.8,0.00013698,2]
[353374972,1739803847821,-1905.53,0.00013698,2]
[353374973,1739803847830,-1606.14,0.00013698,2]
[353374974,1739803847840,-500.0,0.00013698,2]
[353374975,1739803847850,-500.0,0.00013698,2]
[353374976,1739803847861,-500.0,0.00013698,2]
[353374977,1739803847871,-500.0,0.00013698,2]
[353374978,1739803847881,-1283.18,0.00013698,2]
[353374979,1739803847892,-664.39,0.00013698,2]
[353374980,1739803847902,-500.0,0.00013698,2]
[353374981,1739803847911,-500.0,0.00013698,2]
[353374982,1739803847921,-500.0,0.00013698,2]
[353374983,1739803847931,-504.89483573,0.00013698,2]
[353374984,1739803847940,-500.0,0.00013698,2]
[353374985,1739803847950,-500.0,0.00013698,2]
[353374986,1739803847960,-500.79430067,0.00013698,2]
[353374987,1739803847970,-1149.09,0.00013698,2]
[353374988,1739803847979,-2018.87,0.00013698,2]
[353374989,1739803847990,-500.0,0.00013698,2]
[353374990,1739803847999,-1799.75,0.00013698,2]
[353374991,1739803848009,-500.0,0.00013698,2]
[353374992,1739803848019,-500.0,0.00013698,2]
[353374993,1739803848028,-2094.56,0.00013698,2]
[353374994,1739803848037,-738.97,0.00013698,2]
[353374995,1739803848047,-515.84812463,0.00013698,2]
[353374996,1739803848056,-500.44121385,0.00013698,2]
[353374997,1739803848066,-457.40305692,0.00013698,2]
[353374998,1739803848074,-1924.39,0.00013698,2]
[353374999,1739803848083,-393.51967789,0.00013698,2]
[353375000,1739803848092,-1671.84,0.00013698,2]
[353375001,1739803848102,-1282.31,0.00013698,2]
[353375002,1739803848111,-500.0,0.00013698,2]
[353375003,1739803848121,-2220.9,0.00013698,2]
[353375004,1739803848131,-535.73141106,0.00013698,2]
[353375005,1739803848141,-500.0,0.00013698,2]
[353375006,1739803848151,-500.0,0.00013698,2]
[353375007,1739803848161,-500.0,0.00013698,2]
[353375008,1739803848171,-500.0,0.00013698,2]
[353375009,1739803848181,-500.45145198,0.00013698,2]
[353375010,1739803848191,-3581.87,0.00013698,2]
[353375011,1739803848201,-500.0,0.00013698,2]
[353375012,1739803848211,-550.49362388,0.00013698,2]
[353375013,1739803848223,-500.0,0.00013698,2]
[353375014,1739803848234,-343.52201852,0.00013698,2]
[353375015,1739803848244,-661.93,0.00013698,2]
[353375016,1739803848254,-500.0,0.00013698,2]
[353375017,1739803848264,-508.52046026,0.00013698,2]
[353375018,1739803848274,-500.0,0.00013698,2]
[353375019,1739803848284,-500.0,0.00013698,2]
[353375020,1739803848294,-527.2,0.00013698,2]
[353375021,1739803848305,-521.34,0.00013698,2]
[353375022,1739803848315,-500.0,0.00013698,2]
[353375023,1739803848326,-500.0,0.00013698,2]
[353375024,1739803848336,-500.0,0.00013698,2]
[353375025,1739803848346,-1481.21,0.00013698,2]
[353375026,1739803848357,-500.0,0.00013698,2]
[353375027,1739803848366,-500.0,0.00013698,2]
[353375028,1739803848376,-500.0,0.00013698,2]
[353375029,1739803848386,-1343.9,0.00013698,2]
[353375030,1739803848395,-721.74,0.00013698,2]
[353375031,1739803848405,-1070.19,0.00013698,2]
[353375032,1739803848415,-1602.87,0.00013698,2]
[353375033,1739803848424,-625.71,0.00013698,2]
[353375034,1739803848434,-500.0,0.00013698,2]
[353375035,1739803848444,-801.31,0.00013698,2]
[353375036,1739803848454,-500.0,0.00013698,2]
[353375037,1739803848464,-500.0,0.00013698,2]
[353375038,1739803848474,-1178.4,0.00013698,2]
[353375039,1739803848484,-500.0,0.00013698,2]
[353375040,1739803848495,-223.60925343,0.00013698,2]
[353375041,1739803848505,-500.0,0.00013698,2]
[353375042,1739803848516,-500.0,0.00013698,2]
[353375043,1739803848527,-1414.34,0.00013698,2]
[353375044,1739803848537,-434.28990708,0.00013698,2]
[353375045,1739803848547,-2626.56,0.00013698,2]
[353375046,1739803848558,-500.0,0.00013698,2]
[353375047,1739803848568,-500.0,0.00013698,2]
[353375048,1739803848578,-290.23116707,0.00013698,2]
[353375049,1739803848589,-500.0,0.00013698,2]
[353375050,1739803848599,-533.4599666,0.00013698,2]
[353375051,1739803848609,-500.0,0.00013698,2]
[353375052,1739803848619,-500.0,0.00013698,2]
[353375053,1739803848629,-500.0,0.00013698,2]
[353375054,1739803848639,-500.0,0.00013698,2]
[353375055,1739803848650,-500.0,0.00013698,2]
[353375056,1739803848660,-208.76,0.00013698,2]
[353375057,1739803848670,-500.0,0.00013698,2]
[353375058,1739803848681,-837.2,0.00013698,2]
[353375059,1739803848691,-500.0,0.00013698,2]
[353375060,1739803848705,-500.0,0.00013698,2]
[353375061,1739803848715,-500.0,0.00013698,2]
[353375062,1739803848735,-500.0,0.00013698,2]
[353375063,1739803848751,-500.0,0.00013698,2]
[353375064,1739803848762,-500.0,0.00013698,2]
[353375065,1739803848773,-500.0,0.00013698,2]
[353375066,1739803848783,-500.0,0.00013698,2]
[353375067,1739803848793,-500.0,0.00013698,2]
[353375068,1739803848803,-501.54,0.00013698,2]
[353375069,1739803848814,-304.24687392,0.00013698,2]
[353375070,1739803848825,-496.46,0.00013698,2]
[353375071,1739803848834,-725.34,0.000137,2]
[353375072,1739803848844,-2318.3642535,0.00013708,2]
[353375073,1739803848854,-150.0,0.00013731,2]
[353375074,1739803848864,-150.0,0.00013761,2]
[353375075,1739803848874,-500.0,0.00013779,2]
[353375076,1739803848884,-500.0,0.00013779,2]
[353375077,1739803848893,-500.0,0.00013779,2]
[353375078,1739803848904,-500.0,0.00013779,2]
[353375079,1739803848913,-500.0,0.00013779,2]
[353375080,1739803848924,-662.6,0.00013779,2]
[353375081,1739803848934,-267.31278484,0.00013779,2]
[353375082,1739803848944,-500.0,0.00013779,2]